bitfinex-derivatives/quotes_SOLF0:USTF0_20250923
["timestamp","ask_amount","ask_price","bid_price","bid_amount"]
[1758621197598,3.1750019,218.85,218.78,4.1111]
[1758621197801,7.23,218.86,218.78,4.1111]
[1758621197998,3.17481825,218.85,218.78,4.1111]
[1758621198202,7.23,218.86,218.78,4.1111]
[1758621198700,7.23,218.86,218.79,1.91077625]
[1758621200307,1.91077625,218.83,218.73,4.18]
[1758621200505,7.23,218.82,218.73,6.09077625]
[1758621201905,7.23,218.82,218.74,4.1119]
[1758621205610,7.23,218.82,218.73,6.09077625]
[1758621205611,1.91077625,218.81,218.73,1.91077625]
[1758621205807,7.23,218.8,218.71,4.1124]
[1758621211615,7.23,218.8,218.72,1.91077625]
[1758621211816,7.23,218.8,218.73,4.1121]
[1758621212817,7.23,218.8,218.74,4.18]
[1758621216018,7.23,218.8,218.76,4.18]
[1758621216219,7.23,218.8,218.77,4.18]
[1758621219022,7.25,218.83,218.77,4.18]
[1758621219321,3.16931296,218.82,218.75,6.02257625]
[1758621219522,7.25,218.83,218.75,6.02257625]
[1758621219825,7.25,218.83,218.75,1.91077625]
[1758621219826,3.16931232,218.82,218.75,1.91077625]
[1758621220012,7.25,218.83,218.75,1.91077625]
[1758621220218,3.16931232,218.82,218.75,1.91077625]
[1758621220418,7.25,218.83,218.75,1.91077625]
[1758621220619,3.16988602,218.82,218.75,1.91077625]
[1758621220818,7.25,218.83,218.75,1.91077625]
[1758621221024,7.25,218.81,218.75,1.91077625]
[1758621221424,7.25,218.81,218.74,104.18]
[1758621221425,7.25,218.81,218.74,100.0]
[1758621223522,7.25,218.81,218.74,104.18]
[1758621225927,7.25,218.84,218.76,6.09077625]
[1758621226127,3.19626701,218.83,218.79,1.91077625]
[1758621226317,63.9218,218.89,218.79,1.91077625]
[1758621226318,1.41525387,218.91,218.8,4.18]
[1758621226522,7.25,218.88,218.8,4.18]
[1758621226722,6.83480639,218.87,218.8,4.18]
[1758621226925,6.83480639,218.86,218.8,4.18]
[1758621227221,7.25,218.92,218.83,4.18]
[1758621227428,6.83776912,218.91,218.85,1.91077625]
[1758621227622,3.19874558,218.9,218.88,1.91077625]
[1758621227926,7.25,218.96,218.89,4.18]
[1758621228125,4.1073,218.99,218.91,6.09077625]
[1758621228325,252.03292433,219.0,218.91,6.09077625]
[1758621228326,7.25,218.98,218.91,6.09077625]
[1758621228927,11.358,218.95,218.91,6.09077625]
[1758621230628,11.358,218.95,218.91,4.18]
[1758621230829,11.3576,218.98,218.91,1.91077625]
[1758621231334,11.3578,218.96,218.9,4.18]
[1758621231727,11.3578,218.96,218.91,1.91077625]
[1758621231930,11.3578,218.96,218.92,4.18]
[1758621232130,4.1074,218.99,218.91,1.91077625]
[1758621232332,4.1074,218.99,218.91,6.09077625]
[1758621232834,4.1074,218.99,218.91,1.91077625]
[1758621233036,4.1074,218.99,218.92,4.18]
[1758621233632,259.28292433,219.0,218.92,4.18]
[1758621233838,259.28292433,219.0,218.93,1.91077625]
[1758621234133,7.25,218.99,218.96,1.91077625]
[1758621235438,7.25,218.99,218.94,4.18]
[1758621235738,7.25,218.99,218.93,6.09077625]
[1758621235940,11.3573,218.99,218.91,1.91077625]
[1758621236133,7.25,218.99,218.89,4.18]
[1758621236336,7.25,218.99,218.89,6.09077625]
[1758621236634,7.25,218.97,218.89,6.09077625]
[1758621237931,11.3577,218.97,218.89,6.09077625]
[1758621251043,4.1081,218.95,218.89,6.09077625]
[1758621251237,7.26,218.94,218.89,6.09077625]
[1758621251642,4.1081,218.95,218.89,6.09077625]
[1758621252344,7.26,218.94,218.89,6.08077625]
[1758621252542,4.1081,218.95,218.89,6.08077625]
[1758621253037,7.26,218.95,218.89,6.08077625]
[1758621253736,7.26,218.95,218.89,4.17]
[1758621253942,7.26,218.97,218.9,1.91077625]
[1758621256945,4.108,218.96,218.9,1.91077625]
[1758621257343,7.26,218.95,218.9,1.91077625]
[1758621257844,4.108,218.96,218.9,1.91077625]
[1758621258444,4.108,218.96,218.9,6.08077625]
[1758621258642,7.26,218.95,218.9,6.08077625]
[1758621259039,4.108,218.96,218.9,6.08077625]
[1758621259242,7.26,218.95,218.9,6.08077625]
[1758621259942,4.108,218.96,218.9,6.08077625]
[1758621260245,7.26,218.95,218.89,1.91077625]
[1758621260635,7.26,218.95,218.9,100.0]
[1758621260835,7.26,218.95,218.9,104.17]
[1758621261043,4.108,218.96,218.9,104.17]
[1758621261243,11.368,218.96,218.9,104.17]
[1758621262748,7.26,218.93,218.9,100.0]
[1758621263146,4.1082,218.94,218.9,100.0]
[1758621263844,7.26,218.93,218.9,100.0]
[1758621264047,4.1082,218.94,218.9,100.0]
[1758621264448,7.26,218.93,218.9,100.0]
[1758621264652,4.1082,218.94,218.9,100.0]
[1758621265041,7.26,218.93,218.9,100.0]
[1758621265546,4.1082,218.94,218.9,100.0]
[1758621266248,7.26,218.93,218.91,4.17]
[1758621266551,7.26,218.95,218.9,100.0]
[1758621267554,7.26,218.95,218.91,4.17]
[1758621267955,7.26,218.95,218.9,100.0]
[1758621268254,11.3679,218.96,218.91,4.17]
[1758621268454,11.3679,218.96,218.9,104.17]
[1758621268953,7.26,218.93,218.9,104.17]
[1758621269956,4.1082,218.94,218.9,100.0]
[1758621270254,7.26,218.91,218.9,100.0]
[1758621270447,10.45034033,218.91,218.9,100.0]
[1758621272262,14.0713433,218.91,218.9,100.0]
[1758621274158,10.45034033,218.91,218.9,100.0]
[1758621277558,3.19034033,218.91,218.9,100.0]
[1758621278357,115.79034033,218.91,218.9,100.0]
[1758621278554,3.19034033,218.91,218.9,104.17]
[1758621278956,10.27034033,218.91,218.9,100.0]
[1758621279364,3.19034033,218.91,218.9,100.0]
[1758621280162,3.19034033,218.91,218.9,104.17]
[1758621280571,115.79034033,218.91,218.9,104.17]
[1758621281274,3.19034033,218.91,218.9,104.17]
[1758621281572,115.77034033,218.91,218.9,104.17]
[1758621282875,3.19034033,218.91,218.9,104.17]
[1758621283073,115.77034033,218.91,218.9,104.17]
[1758621285575,3.19034033,218.91,218.9,104.17]
[1758621285770,115.77034033,218.91,218.9,104.17]
[1758621286264,3.19034033,218.91,218.9,104.17]
[1758621292576,10.27034033,218.91,218.9,100.0]
[1758621295683,3.19034033,218.91,218.9,100.0]
[1758621298186,3.19034033,218.91,218.9,104.17]
[1758621300984,14.30765989,218.91,218.9,92.13011094]
[1758621301178,14.30765989,218.91,218.9,71.27181094]
[1758621301382,14.30765989,218.91,218.9,56.92341094]
[1758621301687,14.76765989,218.91,218.9,49.71591094]
[1758621302684,14.30765989,218.91,218.9,49.71591094]
[1758621302885,6.80765989,218.91,218.9,49.71591094]
[1758621304376,6.80765989,218.91,218.9,53.88591094]
[1758621304576,119.30765989,218.91,218.9,53.88591094]
[1758621305086,119.2994655,218.91,218.9,53.88591094]
[1758621308091,119.2994655,218.91,218.9,49.71591094]
[1758621309785,126.7994655,218.91,218.9,49.71591094]
[1758621312686,126.7994655,218.91,218.9,35.11731094]
[1758621312882,126.7994655,218.91,218.9,18.89211094]
[1758621313089,126.7994655,218.91,218.9,1.094e-05]
[1758621313992,128.17776185,218.91,218.9,1.094e-05]
[1758621314491,4.109,218.9,218.84,4.16]
[1758621314697,7.39,218.88,218.75,4.16]
[1758621314895,120.78113302,218.87,218.75,4.16]
[1758621315096,3.19034033,218.86,218.75,4.16]
[1758621315295,119.87,218.85,218.75,4.16]
[1758621315495,3.19034033,218.84,218.75,4.16]
[1758621315697,112.46,218.83,218.75,4.16]
[1758621317096,112.46,218.83,218.75,7.14299629]
[1758621317291,112.46,218.83,218.76,4.16]
[1758621318201,112.46,218.83,218.76,4.16]
[1758621319500,3.18764223,218.82,218.76,4.16]
[1758621319698,119.85,218.83,218.76,4.16]
[1758621319897,3.18773637,218.82,218.76,4.16]
[1758621320097,119.85,218.83,218.76,4.16]
[1758621320296,3.1877546,218.82,218.76,4.16]
[1758621320498,119.85,218.83,218.76,4.16]
[1758621320699,3.18680796,218.82,218.76,4.16]
[1758621320999,119.85,218.83,218.76,4.16]
[1758621321404,3.18545421,218.82,218.76,4.16]
[1758621321594,119.85,218.83,218.76,4.16]
[1758621321794,3.18533574,218.82,218.76,4.16]
[1758621321995,119.85,218.83,218.76,4.16]
[1758621322196,3.18533574,218.82,218.76,4.16]
[1758621322501,119.85,218.83,218.76,4.16]
[1758621322701,3.18448203,218.82,218.76,6.07165254]
[1758621322901,119.85,218.83,218.76,6.07165254]
[1758621323202,3.1844562,218.82,218.76,6.07165254]
[1758621323402,119.85,218.83,218.76,6.07165254]
[1758621323701,3.18369508,218.82,218.76,6.07165254]
[1758621323896,119.85,218.83,218.76,6.07165254]
[1758621324098,7.39,218.81,218.76,4.16]
[1758621324403,7.39,218.82,218.76,4.16]
[1758621333611,7.25,218.8,218.76,4.18]
[1758621333809,7.25,218.8,218.75,1.91165254]
[1758621334009,112.44,218.79,218.76,4.18]
[1758621334210,119.69,218.79,218.76,4.18]
[1758621334705,7.25,218.78,218.76,4.18]
[1758621337009,7.25,218.78,218.74,1.91165254]
[1758621337207,7.25,218.78,218.75,4.18]
[1758621337409,112.44,218.79,218.74,1.91165254]
[1758621337602,7.25,218.78,218.71,8.2924]
[1758621337807,7.25,218.78,218.71,10.20405254]
[1758621340213,7.25,218.78,218.73,1.91165254]
[1758621340404,112.44,218.79,218.74,4.18]
[1758621340710,7.25,218.78,218.74,4.18]
[1758621340912,112.44,218.79,218.74,4.18]
[1758621341116,7.25,218.78,218.74,4.18]
[1758621341303,112.44,218.79,218.74,4.18]
[1758621341506,7.25,218.78,218.74,4.18]
[1758621342208,112.44,218.79,218.74,4.18]
[1758621342402,7.25,218.78,218.74,4.18]
[1758621342610,7.25,218.78,218.73,4.18]
[1758621342907,7.25,218.78,218.74,4.18]
[1758621343102,112.44,218.79,218.74,4.18]
[1758621343812,7.25,218.78,218.74,4.18]
[1758621344213,7.25,218.78,218.73,4.18]
[1758621344415,1.91165254,218.86,218.76,1.91165254]
[1758621344714,7.25,218.84,218.76,6.09165254]
[1758621344914,7.25,218.82,218.76,6.09165254]
[1758621345814,7.25,218.82,218.74,1.91165254]
[1758621346114,9.16165254,218.82,218.74,1.91165254]
[1758621346315,9.16165254,218.82,218.73,4.18]
[1758621346915,13.27225254,218.82,218.73,8.2921]
[1758621349118,13.27225254,218.82,218.73,4.18]
[1758621349315,9.16165254,218.8,218.71,1.91165254]
[1758621349522,7.25,218.78,218.71,1.91165254]
[1758621349818,7.25,218.78,218.69,6.09165254]
[1758621350020,7.25,218.78,218.69,10.20435254]
[1758621350212,7.25,218.78,218.7,4.18]
[1758621352315,4.1114,218.77,218.7,4.18]
[1758621352521,7.25,218.76,218.7,4.18]
[1758621353420,7.25,218.74,218.7,4.18]
[1758621353616,7.25,218.74,218.66,4.18]
[1758621361619,7.25,218.74,218.67,1.91165254]
[1758621361819,7.25,218.74,218.68,4.18]
[1758621369820,7.25,218.74,218.7,4.18]
[1758621370021,7.25,218.74,218.69,6.02455254]
[1758621370329,116.4314,218.77,218.71,4.18]
[1758621370526,7.35,218.75,218.71,4.18]
[1758621370727,7.35,218.76,218.71,4.18]
[1758621370928,7.35,218.74,218.71,4.18]
[1758621371123,7.35,218.76,218.71,4.18]
[1758621371328,7.35,218.74,218.71,4.18]
[1758621372027,7.35,218.76,218.71,4.18]
[1758621372327,7.35,218.74,218.71,4.18]
[1758621372832,7.35,218.76,218.71,4.18]
[1758621373035,3.18019362,218.75,218.71,4.18]
[1758621373224,116.4314,218.77,218.71,4.18]
[1758621373429,7.35,218.74,218.71,4.18]
[1758621373625,4.1117,218.76,218.71,4.18]
[1758621373821,6.99665108,218.75,218.71,4.18]
[1758621374026,4.1117,218.76,218.71,4.18]
[1758621374226,6.99596956,218.75,218.71,4.18]
[1758621374429,4.1117,218.76,218.71,4.18]
[1758621374625,7.35,218.74,218.71,4.18]
[1758621374825,4.1117,218.76,218.71,4.18]
[1758621375028,7.35,218.74,218.71,4.18]
[1758621375330,112.32,218.77,218.71,4.18]
[1758621375532,14.34586662,218.76,218.7,4.18]
[1758621375732,3.18001535,218.75,218.69,1.91165254]
[1758621375933,7.35,218.76,218.7,4.18]
[1758621376132,3.18012035,218.75,218.7,4.18]
[1758621376325,7.35,218.76,218.7,4.18]
[1758621376526,3.18174054,218.75,218.69,1.91165254]
[1758621376721,7.35,218.76,218.7,4.18]
[1758621376922,3.18289056,218.75,218.69,1.91165254]
[1758621377122,7.35,218.75,218.7,4.18]
[1758621377327,7.35,218.75,218.69,6.09165254]
[1758621377930,7.35,218.75,218.69,10.20445254]
[1758621378122,7.35,218.75,218.65,63.9902]
[1758621378123,11.0912,218.79,218.72,4.18]
[1758621378328,7.00356122,218.78,218.72,4.18]
[1758621378622,11.0912,218.79,218.72,4.18]
[1758621378823,7.00342744,218.78,218.72,4.18]
[1758621379032,11.0912,218.79,218.72,4.18]
[1758621379232,7.00145459,218.78,218.72,4.18]
[1758621379432,3.18275239,218.77,218.72,4.18]
[1758621379631,3.18275239,218.77,218.71,1.91165254]
[1758621379833,4.1112,218.79,218.74,4.18]
[1758621380131,6.98,218.77,218.74,4.18]
[1758621381028,6.98,218.77,218.73,1.91165254]
[1758621381333,6.98,218.77,218.74,4.18]
[1758621381730,6.98,218.77,218.73,1.91165254]
[1758621382132,6.98,218.77,218.74,4.18]
[1758621382336,6.98,218.8,218.74,4.18]
[1758621382538,6.94835055,218.79,218.74,4.18]
[1758621382833,3.18317973,218.78,218.74,4.18]
[1758621383028,6.98,218.76,218.74,4.18]
[1758621383633,6.98,218.76,218.73,6.09165254]
[1758621384537,6.98,218.76,218.73,4.18]
[1758621387837,6.98,218.76,218.72,4.1123]
[1758621388336,6.98,218.76,218.73,4.18]
[1758621388534,6.98,218.8,218.73,4.18]
[1758621388738,113.45322706,218.88,218.73,4.18]
[1758621388930,15.4286759,218.87,218.73,4.18]
[1758621389130,6.98,218.85,218.73,4.18]
[1758621389330,6.98,218.83,218.76,4.18]
[1758621389538,6.95095217,218.82,218.76,4.18]
[1758621389837,3.18465248,218.81,218.76,4.18]
[1758621390036,6.98,218.83,218.76,4.18]
[1758621390233,6.9492938,218.82,218.76,4.18]
[1758621390438,3.18387297,218.81,218.75,4.1116]
[1758621390637,6.98,218.83,218.76,4.18]
[1758621390835,6.94940816,218.82,218.76,4.18]
[1758621391030,3.18393503,218.81,218.72,2.98761887]
[1758621391240,7.44,218.81,218.73,4.18]
[1758621392842,7.44,218.81,218.75,4.18]
[1758621400748,7.44,218.81,218.75,8.2918]
[1758621409158,7.44,218.81,218.75,4.18]
[1758621418662,4.1101,218.85,218.76,4.1115]
[1758621418663,7.44,218.84,218.76,4.1115]
[1758621418865,7.44,218.82,218.76,4.1115]
[1758621419061,7.44,218.81,218.77,4.18]
[1758621419462,7.44,218.81,218.76,4.1115]
[1758621420061,7.44,218.86,218.76,4.1115]
[1758621420273,7.44,218.84,218.76,4.1115]
[1758621420458,7.44,218.82,218.76,4.1115]
[1758621420663,7.44,218.82,218.78,4.1112]
[1758621420863,457.40931896,218.91,218.79,4.17]
[1758621420864,350.58902706,218.91,218.79,4.17]
[1758621421063,14.28352826,218.9,218.79,4.17]
[1758621421259,7.3,218.88,218.79,4.17]
[1758621421565,3.19356998,218.87,218.79,4.17]
[1758621422270,7.3,218.86,218.8,4.1107]
[1758621422464,7.3,218.84,218.81,4.17]
[1758621422865,7.3,218.84,218.8,4.1107]
[1758621423270,7.3,218.84,218.81,4.17]
[1758621424769,14.39691887,218.89,218.78,4.17]
[1758621424974,7.3,218.87,218.73,4.17]
[1758621425167,7.3,218.85,218.73,4.17]
[1758621425363,7.3,218.83,218.73,4.17]
[1758621425767,3.1937125,218.82,218.73,4.17]
[1758621426066,10.49365696,218.81,218.73,4.17]
[1758621426271,7.3,218.81,218.73,4.17]
[1758621426772,7.3,218.81,218.73,8.282]
[1758621427570,7.3,218.81,218.73,4.17]
[1758621428171,3.19480972,218.8,218.73,4.17]
[1758621428475,7.3,218.82,218.73,4.17]
[1758621428774,7.3,218.8,218.73,4.17]
[1758621429572,3.19297131,218.79,218.69,4.17]
[1758621429876,10.49297131,218.78,218.69,4.17]
[1758621430075,3.19297131,218.77,218.69,4.17]
[1758621430272,7.3,218.78,218.69,4.17]
[1758621430476,3.1931893,218.77,218.69,4.17]
[1758621430678,7.3,218.78,218.69,4.17]
[1758621430880,3.1931893,218.77,218.69,4.17]
[1758621431083,7.3,218.78,218.69,4.17]
[1758621431380,7.3,218.76,218.69,4.17]
[1758621432878,7.3,218.76,218.65,4.17]
[1758621432879,3.19356585,218.75,218.65,4.17]
[1758621433079,7.3,218.74,218.65,4.17]
[1758621433776,7.3,218.74,218.66,4.1133]
[1758621433982,7.3,218.74,218.67,4.17]
[1758621436982,7.3,218.79,218.69,4.17]
[1758621437188,3.18515228,218.78,218.69,4.17]
[1758621437388,7.3,218.79,218.69,4.17]
[1758621437587,3.18502876,218.78,218.69,4.17]
[1758621437785,7.3,218.79,218.72,4.1123]
[1758621437990,3.18502907,218.78,218.72,4.1123]
[1758621438285,7.3,218.79,218.72,4.1123]
[1758621438487,3.18491417,218.78,218.72,4.1123]
[1758621438788,7.3,218.79,218.72,4.1123]
[1758621438988,3.18516085,218.78,218.72,4.1123]
[1758621439178,7.3,218.79,218.72,4.1123]
[1758621439384,3.18504861,218.78,218.72,4.1123]
[1758621439581,7.3,218.79,218.72,4.1123]
[1758621439785,3.18505845,218.78,218.72,4.1123]
[1758621439983,7.3,218.79,218.72,4.1123]
[1758621440194,3.18505845,218.78,218.72,4.1123]
[1758621440388,7.3,218.79,218.72,4.1123]
[1758621440588,7.07,218.77,218.71,4.18]
[1758621441186,4.1107,218.81,218.72,4.1123]
[1758621441387,10.25472171,218.8,218.72,4.1123]
[1758621441591,7.07,218.78,218.72,4.1123]
[1758621441792,7.07,218.78,218.69,4.1127]
[1758621442793,11.1812,218.78,218.69,4.1127]
[1758621443396,7.07,218.78,218.7,4.18]
[1758621444594,7.07,218.78,218.7,6.09231347]
[1758621446497,11.1812,218.78,218.7,6.09231347]
[1758621446794,3.18427133,218.77,218.7,6.09231347]
[1758621446994,7.07,218.77,218.7,6.09231347]
[1758621448397,60.77578907,219.53,218.71,8.2924]
[1758621448398,7.07,218.8,218.71,8.2924]
[1758621448592,7.07,218.78,218.71,8.2924]
[1758621451702,7.07,218.78,218.7,1.91231347]
[1758621451898,1.91231347,218.8,218.7,1.91231347]
[1758621451899,7.28,218.76,218.7,1.91231347]
[1758621454401,7.28,218.76,218.7,6.10231347]
[1758621455902,7.28,218.78,218.71,4.1125]
[1758621456093,3.18341859,218.77,218.71,4.1125]
[1758621456298,7.28,218.78,218.71,4.1125]
[1758621456599,3.18351013,218.77,218.71,4.1125]
[1758621456799,7.28,218.78,218.71,4.1125]
[1758621456999,3.18350812,218.77,218.71,4.1125]
[1758621457297,7.28,218.78,218.71,4.1125]
[1758621457497,3.18349595,218.77,218.71,4.1125]
[1758621457697,7.28,218.78,218.71,4.1125]
[1758621457894,3.18349534,218.77,218.71,4.1125]
[1758621458096,7.28,218.77,218.71,8.3025]
[1758621458302,7.28,218.77,218.72,1.91231347]
[1758621458506,7.28,218.85,218.75,6.10231347]
[1758621458806,7.28,218.83,218.75,6.10231347]
[1758621459007,3.18387363,218.82,218.75,6.10231347]
[1758621459509,7.28,218.81,218.75,4.19]
[1758621459706,3.18387363,218.8,218.75,4.19]
[1758621459898,7.28,218.83,218.75,4.19]
[1758621460105,7.28,218.81,218.75,4.19]
[1758621460303,3.18395659,218.8,218.75,4.19]
[1758621460504,7.28,218.83,218.75,4.19]
[1758621460708,7.28,218.81,218.75,4.19]
[1758621460910,7.28,218.79,218.75,4.19]
[1758621461110,4.1106,218.81,218.75,4.19]
[1758621461311,7.28,218.79,218.75,4.19]
[1758621461513,4.1106,218.81,218.75,4.19]
[1758621461712,7.28,218.79,218.75,4.19]
[1758621461905,7.28,218.8,218.75,4.19]
[1758621462410,4.1106,218.81,218.75,4.19]
[1758621462714,7.28,218.79,218.75,4.19]
[1758621463926,7.28,218.8,218.75,4.19]
[1758621464109,4.1106,218.81,218.75,4.19]
[1758621464310,7.28,218.79,218.75,4.19]
[1758621464510,7.28,218.79,218.74,4.19]
[1758621464712,7.28,218.79,218.75,4.19]
[1758621465014,7.28,218.79,218.74,4.1118]
[1758621465211,7.28,218.79,218.75,4.19]
[1758621465612,7.28,218.79,218.74,4.1118]
[1758621465815,7.28,218.81,218.75,4.19]
[1758621467323,3.18434653,218.8,218.75,4.19]
[1758621467523,7.28,218.81,218.74,8.3018]
[1758621467821,3.18434785,218.8,218.74,8.3018]
[1758621468021,7.28,218.81,218.75,6.02391347]
[1758621468217,72.7901778,218.96,218.8,4.19]
[1758621468218,7.28,218.84,218.8,4.19]
[1758621468523,3.18491727,218.83,218.79,1.91231347]
[1758621468725,7.28,218.87,218.8,4.19]
[1758621468913,3.1667818,218.86,218.8,4.19]
[1758621469121,3.1667818,218.85,218.79,6.10231347]
[1758621469924,3.1667818,218.85,218.79,10.21311347]
[1758621472027,3.1667818,218.85,218.79,6.10231347]
[1758621472226,3.1667818,218.85,218.79,4.19]
[1758621474424,9.19231347,218.84,218.75,6.10231347]
[1758621475827,13.30251347,218.84,218.75,6.10231347]
[1758621479728,9.19231347,218.84,218.75,6.10231347]
[1758621481430,7.14,218.79,218.71,4.1125]
[1758621481636,7.14,218.79,218.72,6.08231347]
[1758621481930,7.14,218.78,218.68,1.91231347]
[1758621482123,7.14,218.78,218.71,4.17]
[1758621482833,9.05231347,218.78,218.68,1.91231347]
[1758621483237,7.14,218.78,218.7,1.91231347]
[1758621483431,7.14,218.78,218.71,4.1124]
[1758621483632,7.14,218.78,218.7,1.91231347]
[1758621486236,7.14,218.78,218.69,8.2827]
[1758621486237,7.14,218.78,218.69,4.17]
[1758621486439,7.14,218.78,218.71,4.17]
[1758621487640,7.14,218.78,218.72,1.91231347]
[1758621488337,7.14,218.78,218.71,4.17]
[1758621490339,7.14,218.78,218.7,6.02501347]
[1758621490738,7.14,218.78,218.7,10.19501347]
[1758621496339,7.14,218.78,218.71,4.1124]
[1758621496637,7.14,218.83,218.74,1.91231347]
[1758621496833,3.15913243,218.82,218.75,4.17]
[1758621497030,10.29913243,218.81,218.75,4.17]
[1758621497233,7.14,218.81,218.75,4.17]
[1758621497839,7.14,218.81,218.75,8.2816]
[1758621498341,4.1097,218.87,218.78,6.09231347]
[1758621498342,7.26,218.86,218.78,6.09231347]
[1758621498539,7.26,218.84,218.78,6.09231347]
[1758621500444,7.26,218.87,218.8,4.18]
[1758621500745,7.26,218.85,218.77,1.91231347]
[1758621501941,7.26,218.85,218.77,10.20351347]
[1758621503247,7.26,218.87,218.77,10.20351347]
[1758621503543,7.26,218.85,218.77,10.20351347]
[1758621503743,7.26,218.83,218.74,10.20411347]
[1758621503948,1.91231347,218.85,218.74,10.20411347]
[1758621504148,7.26,218.83,218.74,10.20411347]
[1758621504449,7.26,218.84,218.74,10.20411347]
[1758621504638,7.26,218.82,218.74,10.20411347]
[1758621506244,6.02261347,218.83,218.74,10.20411347]
[1758621506545,7.26,218.82,218.74,8.2918]
[1758621513156,7.26,218.82,218.77,4.18]
[1758621513552,7.26,218.82,218.76,4.1115]
[1758621513749,7.26,218.82,218.77,4.18]
[1758621514153,7.26,218.82,218.76,4.1115]
[1758621514657,7.26,218.82,218.74,4.18]
[1758621515457,7.26,218.82,218.78,8.291]
[1758621517657,7.26,218.82,218.79,4.18]
[1758621518362,6.99,218.85,218.78,4.111]
[1758621518563,6.99,218.83,218.78,8.291]
[1758621518764,6.99,218.85,218.78,8.291]
[1758621518965,6.99,218.83,218.78,8.291]
[1758621519160,4.1097,218.86,218.78,8.291]
[1758621519161,6.99,218.85,218.78,8.291]
[1758621519361,6.99,218.83,218.78,8.291]
[1758621519561,6.99,218.85,218.78,8.291]
[1758621519754,3.15995778,218.84,218.78,8.291]
[1758621519960,6.99,218.82,218.78,8.291]
[1758621520160,6.99,218.85,218.78,8.291]
[1758621520361,6.99,218.83,218.74,4.18]
[1758621520666,3.15969599,218.82,218.74,4.18]
[1758621520866,6.99,218.86,218.74,4.18]
[1758621521063,66.91413292,218.87,218.74,4.18]
[1758621521064,6.99,218.81,218.74,4.18]
[1758621521264,6.99,218.81,218.73,4.112]
[1758621522762,11.1008,218.81,218.73,4.112]
[1758621524566,6.99,218.79,218.67,4.18]
[1758621524762,6.99,218.77,218.67,4.18]
[1758621525772,6.99,218.77,218.69,4.1129]
[1758621525970,6.99,218.77,218.7,4.18]
[1758621526365,6.99,218.77,218.68,63.9808]
[1758621526665,6.99,218.77,218.7,4.18]
[1758621527766,6.99,218.77,218.72,4.1123]
[1758621527965,6.99,218.77,218.73,4.18]
[1758621529370,6.99,218.8,218.73,4.18]
[1758621535575,6.99,218.78,218.73,4.18]
[1758621535770,4.111,218.79,218.69,7.09973292]
[1758621535970,3.15846679,218.78,218.69,11.27973292]
[1758621536171,4.111,218.79,218.69,8.2927]
[1758621536473,10.14807889,218.78,218.7,4.1126]
[1758621536676,6.99,218.78,218.7,4.1126]
[1758621537175,6.99,218.78,218.71,4.18]
[1758621537365,6.99,218.78,218.7,4.1126]
[1758621539674,11.1013,218.78,218.69,4.18]
[1758621542780,11.1013,218.78,218.66,2.98703292]